{"text_format":"3","workbook":"xlsx","n_sheets":1,"sheets":["Лист1"],"not_rendered":{"defined_names":1},"read":"whole","date_system":"1900"}

{"sheet":"Лист1","index":0,"n_rows":139,"n_cols":15,"rows_kept":139,"merged":[[0,2,0,13]]}
[null,null,"Итоговый протокол МЭ по предмету Экономика"]
["№ п/п","Муниципалитет","Полное наименование образовательного учреждения (по уставу)","Фамилия","Имя","Отчество","Класс","Класс участия","Балл МЭ-2019","Макс. балл МЭ-2019","Апеляционный балл","Итоговый балл","Статус на МЭ 2019","Фамилия педагога, подготовившего участника олимпиады","Полное наименование образовательного учреждения (по уставу)"]
[1,"Вахитовский район","Общеобразовательная школа-интернат «Лицей имени Н.И. Лобачевского» федерального государственного автономного образовательного учреждения высшего образования \"Казанский (Приволжский) федеральный университет\"","Чтаев","Б.","Я.",7,7,19,90,null,{"$f":"I3+K3","v":19},null,"Билалова Дина Султановна","ОШИ \"Лицей имени Н.И. Лобачевского\" ФГАОУ ВО К(П)ФУ"]
[2,"Вахитовский район","Общеобразовательная школа-интернат «Лицей имени Н.И. Лобачевского» федерального государственного автономного образовательного учреждения высшего образования \"Казанский (Приволжский) федеральный университет\"","Айсин","К.","Н.",7,7,18,90,null,18,null,"Билалова Дина Султановна","ОШИ \"Лицей имени Н.И. Лобачевского\" ФГАОУ ВО К(П)ФУ"]
[3,"Приволжский район","МБОУ «Гимназия №6» Приволжского района ","Кондратьева","А.","А.",7,7,16,90,null,16,null,"Квитко Мария Владимировна","МБОУ \"Гимназия №6\""]
[4,"Вахитовский район","Общеобразовательная школа-интернат «Лицей имени Н.И. Лобачевского» федерального государственного автономного образовательного учреждения высшего образования \"Казанский (Приволжский) федеральный университет\"","Виноградов","Д.","В.",7,7,15,90,null,15,null,"Билалова Дина Султановна","ОШИ \"Лицей имени Н.И. Лобачевского\" ФГАОУ ВО К(П)ФУ"]
[5,"Вахитовский район","ФГКОУ «Казанское суворовское военное училище МО РФ»","Черанев ","И.","В.",7,7,15,90,null,15,null,"Арапов Константин Александрович","ФГКОУ \"Казанское суворовское военное училище МО РФ\" "]
[6,"Вахитовский район","Общеобразовательная школа-интернат «Лицей имени Н.И. Лобачевского» федерального государственного автономного образовательного учреждения высшего образования \"Казанский (Приволжский) федеральный университет\"","Галимов ","Т.","М.",7,7,14,90,null,14,null,"Билалова Дина Султановна","ОШИ \"Лицей имени Н.И.Лобачевского\" КФУ"]
[7,"Ново-Савиновский район","МБОУ \"Лицей №23\" Ново-Савиновского района","Дятчина ","М. ","В.",7,7,12,90,null,12,null,"Краюшкина Л.В. ","МБОУ \"Лицей №23\" Казани"]
[8,"Приволжский район","ОШИ «IT-лицей ФГАОУ ВО «К(П)ФУ»","Тагиров","Д.","Р.",8,8,50,90,6,56,"Победитель","Аглямзянов Рим Камилевич","ОШИ IТ-лицей ФГАОУ ВО К(П)ФУ"]
[9,"Ново-Савиновский район","МАОУ \"Лицей-интернат №7\" Ново-Савиновского района","Гараев","А.","М.",8,8,47,90,7,54,"Призер","Салахутдинов Нияз Наилевич","МАОУ \"Лицей-интернат 7\""]
[10,"Вахитовский район","Общеобразовательная школа-интернат «Лицей имени Н.И. Лобачевского» федерального государственного автономного образовательного учреждения высшего образования \"Казанский (Приволжский) федеральный университет\"","Гинсбург","А.","В.",8,8,30,90,null,30,null,"Билалова Дина Султановна","ОШИ \"Лицей имени Н.И.Лобачевского\" КФУ"]
[11,"Вахитовский район","Общеобразовательная школа-интернат «Лицей имени Н.И. Лобачевского» федерального государственного автономного образовательного учреждения высшего образования \"Казанский (Приволжский) федеральный университет\"","Гражданцев","А.","А.",8,8,25,90,null,25,null,"Билалова Дина Султановна","ОШИ \"Лицей имени Н.И. Лобачевского\" ФГАОУ ВО К(П)ФУ"]
[12,"Советский район","МБОУ \"Гимназия №125\" Советского района ","Зарипова","Р.","М.",8,8,19,90,null,19,null,"Гайнеева Елена Анатольевна","МБОУ \"Гимназия№125\""]
[13,"Кировский район","МБОУ \"Средняя русско-татарская общеобразовательная школа №57\" Кировского района г.Казани","Хайруллина","К.","С.",8,8,18,90,null,18,null,"Шафиков Рустам Рафатович","МБОУ \"Школа № 57\""]
[14,"Ново-Савиновский район","МБОУ \"Лицей №23\" Ново-Савиновского района","Щербанев","К.","Ю.",8,8,17,90,null,17,null,"Мустафина А.Ф. ","МБОУ \"Лицей №23\" Казани"]
[15,"Приволжский район","МБОУ «Гимназия №6» Приволжского района ","Ещенко","А.","Е.",7,8,14,90,null,14,null,"Загулов Андрей Владимирович","МБОУ \"Гимназия №6\""]
[16,"Приволжский район","МБОУ «Гимназия №6» Приволжского района ","Хабибуллин","М.","Р.",8,8,11,90,null,11,null,"Квитко Мария Владимировна","МБОУ \"Гимназия №6\""]
[17,"Приволжский район","МАОУ «Гимназия №19» Приволжского района ","Уваров","Т.","Р.",9,9,95,180,null,95,"Победитель","Лобанов Евгений Михайлович","МАОУ \"Гимназия №19\" "]
[18,"Вахитовский район","МАОУ \"Лицей №131\"","Аскаров ","Б.","К.",9,9,92,180,null,92,"Призер","Коган Дина Ильдусовна"]
[19,"Приволжский район","МАОУ «Гимназия №19» Приволжского района ","Газизуллин","А.","Р.",9,9,90,180,null,90,"Призер","Лобанов Евгений Михайлович","МАОУ \"Гимназия №19\" "]
[20,"Ново-Савиновский район","Инженерный лицей-интернат КНИТУ-КАИ Ново-Савиновского района","Залялиев","М.","А.",9,9,13,180,68,81,null,"Шмурыгин Глеб Владиславович","Инженерный лицей-интернат КНИТУ-КАИ"]
[21,"Вахитовский район","Муниципальное автономное общеобразовательное учреждение \"Лицей №131\" Вахитовского района г. Казани","Коган","Н.","И.",9,9,68,180,10,78,null,"Аникеев Илья Аркадьевич","МАОУ \"Лицей № 131\" Вахитовского района г. Казани"]
[22,"Приволжский район","МАОУ «Гимназия №19» Приволжского района ","Хуснеев","А.","А.",9,9,71,180,3,74,null,"Лобанов Евгений Михайлович","МАОУ \"Гимназия №19\" "]
[23,"Вахитовский район","Муниципальное автономное общеобразовательное учреждение \"Лицей №131\" Вахитовского района г. Казани","Бабушкин ","А. ","П.",9,9,66,180,null,66,null,"Аникеев Илья Аркадьевич","МАОУ \"Лицей № 131\" Вахитовского района г. Казани"]
[24,"Ново-Савиновский район","МАОУ \"Лицей-интернат №7\" Ново-Савиновского района","Шакиров","И.","Н.",9,9,18,180,{"$f":"66-18","v":48},66,null,"Салахутдинов Нияз Наилевич","МАОУ \"Лицей-интернат 7\""]
[25,"Ново-Савиновский район","МБОУ \"Лицей №23\" Ново-Савиновского района","Кононова","Ю.","А.",9,9,63,180,null,63,null,"Мустафина А.Ф. ","МБОУ \"Лицей №23\" Казани"]
[26,"Ново-Савиновский район","МАОУ \"Лицей-интернат №7\" Ново-Савиновского района","Вафин","А.","Ф.",9,9,25,180,15,40,null,"Салахутдинов Нияз Наилевич","МАОУ \"Лицей-интернат 7\""]
[27,"Приволжский район","МБОУ «Гимназия №6» Приволжского района ","Банкаш","Д.","Р.",9,9,31,180,null,31,null,"Гимадеева Чулпан нуретдиновна","МБОУ \"Гимназия №6\""]
[28,"Приволжский район","ОШИ «IT-лицей ФГАОУ ВО «К(П)ФУ»","Сысоева","А.","А.",9,9,31,180,null,31,null,"Шамсутдинов Динар Загитович","ОШИ IТ-лицей ФГАОУ ВО К(П)ФУ"]
[29,"Московский район","Муниципальное автономное общеобразовательное учреждение «Лицей-интернат №2» Московского района г. Казани","Хасанов","Б.","И.",9,9,30,180,null,30,null,"Коган Дина Ильдусовна","МАОУ \"Лицей-интернат №2\" Московского района г. Казани"]
[30,"Ново-Савиновский район","МАОУ \"Лицей-интернат №7\" Ново-Савиновского района","Биктимиров","С.","Н.",9,9,28,180,2,30,null,"Салахутдинов Нияз Наилевич","МАОУ \"Лицей-интернат 7\""]
[31,"Московский район","Муниципальное автономное общеобразовательное учреждение «Лицей-интернат №2» Московского района г. Казани","Шагиев","Р.","З.",9,9,28,180,null,28,null,"Коган Дина Ильдусовна","МАОУ \"Лицей-интернат №2\" Московского района г. Казани"]
[32,"Приволжский район","МБОУ «Гимназия №16» Приволжского района ","Хабибуллина","А.","Р. ",9,9,22,180,null,22,null,"Рахметуллин Токтар Максутович","МБОУ \"Татаро-английская гимназия №16\""]
[33,"Кировский район","МБОУ \"Средняя русско-татарская общеобразовательная школа №57\" Кировского района г.Казани","Шакирова","Р.","Р.",9,9,21,180,null,{"$f":"I35+K35","v":21},null,"Киляшова Кристина Алексеевна","МБОУ \"Школа № 57\""]
[34,"Вахитовский район","Муниципальное автономное общеобразовательное учреждение \"Лицей №131\" Вахитовского района г. Казани","Вшивков","Д.","Р.",9,9,20,180,null,20,null,"Чешуина Марина Сергеевна","МАОУ \"Лицей № 131\" Вахитовского района г. Казани"]
[35,"Вахитовский район","Муниципальное автономное общеобразовательное учреждение \"Лицей №131\" Вахитовского района г. Казани","Давыдова","О.","Д.",9,9,20,180,null,20,null,"Чешуина Марина Сергеевна","МАОУ \"Лицей № 131\" Вахитовского района г. Казани"]
[36,"Ново-Савиновский район","Инженерный лицей-интернат КНИТУ-КАИ Ново-Савиновского района","Абдуллаев","А.","Р.",9,9,20,180,null,20,null,"Шмурыгин Глеб Владиславович","Инженерный лицей-интернат КНИТУ-КАИ"]
[37,"Ново-Савиновский район","МАОУ \"Лицей - интернат №7\"","Валидов","Г.","А.",null,9,19,180,null,19]
[38,"Московский район","Муниципальное автономное общеобразовательное учреждение «Лицей-интернат №2» Московского района г. Казани","Гиниятов","А.","Д.",9,9,17,180,null,17,null,"Коган Дина Ильдусовна","МАОУ \"Лицей-интернат №2\" Московского района г. Казани"]
[39,"Московский район","Муниципальное автономное общеобразовательное учреждение «Лицей-интернат №2» Московского района г. Казани","Шакиров","А.","И. ",9,9,17,180,null,17,null,"Коган Дина Ильдусовна","МАОУ \"Лицей-интернат №2\" Московского района г. Казани"]
[40,"Приволжский район","МАОУ «Гимназия №139-Центр образования» Приволжского района ","Шириева","Д.","А.",9,9,16,180,null,16,null,"Фазылзянова Ильмира Ильдусовна","МАОУ \"Гимназия №139-Центр образования\" Приволжского района"]
[41,"Приволжский район","МБОУ «Гимназия №6» Приволжского района ","Карандашова","С.","С.",9,9,15,180,null,15,null,"Николаева Татьяна Антониновна","МБОУ \"Гимназия №6\""]
[42,"Кировский район","МБОУ \"Средняя русско-татарская общеобразовательная школа №57\" Кировского района г.Казани","Чернышева ","Д.","В.",9,9,13,180,null,13,null,"Киляшова Кристина Алексеевна","МБОУ \"Школа № 57\""]
[43,"Ново-Савиновский район","Инженерный лицей-интернат КНИТУ-КАИ Ново-Савиновского района","Воронова ","К.","А.",9,9,12,180,null,12,null,"Шмурыгин Глеб Владиславович","Инженерный лицей-интернат КНИТУ-КАИ"]
[44,"Ново-Савиновский район","МБОУ «Средняя общеобразовательная школа №170 с углублённым изучением отдельных предметов» Ново-Савиновского района г. Казани","Галеева ","Д. ","Р.",9,9,12,180,null,12,null,"Аглямова Алиса Габдрашитовна","МБОУ \"СОШ №170 с УИОП\" Ново-Савиновского района г.Казани"]
[45,"Приволжский район","МАОУ «Гимназия №139-Центр образования» Приволжского района ","Савинов","С.","М.",9,9,11,180,null,11,null,"Фазылзянова Ильмира Ильдусовна","МАОУ \"Гимназия №139-Центр образования\" Приволжского района"]
[46,"Приволжский район","МАОУ «Гимназия №19» Приволжского района ","Кодолов","А.","О.",9,9,8,180,null,8,null,"Лобанов Евгений Михайлович","МАОУ \"Гимназия №19\" "]
[47,"Московский район","Муниципальное автономное общеобразовательное учреждение «Лицей-интернат №2» Московского района г. Казани","Насретдинов","К.","И.",10,10,112,190,{"$f":"128-I49","v":16},128,"Победитель","Коган Дина Ильдусовна","МАОУ \"Лицей-интернат №2\" Московского района г. Казани"]
[48,"Приволжский район","ОШИ «IT-лицей ФГАОУ ВО «К(П)ФУ»","Михайлов","С.","Ю.",10,10,125,190,null,125,"Призер","Шамсутдинов Динар Загитович","ОШИ IТ-лицей ФГАОУ ВО К(П)ФУ"]
[49,"Вахитовский район","Общеобразовательная школа-интернат «Лицей имени Н.И. Лобачевского» федерального государственного автономного образовательного учреждения высшего образования \"Казанский (Приволжский) федеральный университет\"","Валеев ","Т. ","А.",10,10,100,190,null,100,"Призер","Билалова Дина Султановна","Общеобразовательная школа-интернат «Лицей имени Н. И. Лобачевского» К(П)ФУ "]
[50,"Вахитовский район","Муниципальное автономное общеобразовательное учреждение \"Лицей №131\" Вахитовского района г. Казани","Шнейдман","Я.","Т.",10,10,97,190,null,97,"Призер","Коган Дина Ильдусовна","МАОУ \"Лицей № 131\" Вахитовского района г. Казани"]
[51,"Вахитовский район","Муниципальное автономное общеобразовательное учреждение для детей, проявивших выдающиеся способности «Средняя общеобразовательная школа-интернат «Специализированный олимпиадно-научный центр «СОлНЦе» Вахитовского района г. Казани Вахитовского района г. Казани","Тимуца","А.","В.",10,10,95,190,null,95,"Призер","Гиниятуллин Рамиль Мавлютович","МАОУ СОШИ \"СОлНЦе\""]
[52,"Московский район","Муниципальное автономное общеобразовательное учреждение «Лицей-интернат №2» Московского района г. Казани","Закиров","А.","Д.",10,10,62,190,18,80,null,"Коган Дина Ильдусовна","МАОУ \"Лицей-интернат №2\" Московского района г. Казани"]
[53,"Вахитовский район","МАОУ \"Лицей №131\"","Сулейманова ","А.","Р.",10,10,78,190,null,78,null,"Коган Дина Ильдусовна","МАОУ \"Лицей № 131\" Вахитовского района г. Казани"]
[54,"Вахитовский район","МАОУ \"Лицей №131\"","Зарипова","Р.","Р.",10,10,78,190,null,78,null,"Коган Дина Ильдусовна","МАОУ \"Лицей № 131\" Вахитовского района г. Казани"]
[55,"Приволжский район","ОШИ «IT-лицей ФГАОУ ВО «К(П)ФУ»","Муратов","М.","А.",10,10,66,190,null,66,null,"Шамсутдинов Динар Загитович","ОШИ IТ-лицей ФГАОУ ВО К(П)ФУ"]
[56,"Авиастроительный район","МБОУ \"Гимназия №33\" Авиастроительного района","Гайфутдинов","М.","М.",10,10,22,190,null,22,null,"Нуруллина Э. Р.","МБОУ Гимназия №33"]
[57,"Московский район","Муниципальное автономное общеобразовательное учреждение «Лицей-интернат №2» Московского района г. Казани","Гатауллин","Д.","Р.",10,10,21,190,null,21,null,"Коган Дина Ильдусовна","МАОУ \"Лицей-интернат №2\" Московского района г. Казани"]
[58,"Приволжский район","МБОУ «Средняя общеобразовательная школа №24 с углубленным изучением отдельных предметов»","Грюнберг","А.","М.",10,10,20,190,null,20,null,"Старшинва Виктория Александровна","МБОУ \"Средняя общеобразовательная школа №24 с углубленным изучением отдельных предметов\" Приволжского района г. Казани"]
[59,"Вахитовский район","МБОУ «Гимназия №27 с татарским языком обучения» Вахитовского района","Назипов ","Б. ","И.",10,10,20,190,null,20,null,"Надиманова Зульфия Мансуровна","Гимназия №27"]
[60,"Советский район","МАОУ Лицей №121 им. Героя Советского Союза С.А.Ахтямова Советского района ","Камаева","Д.","Р.",10,10,20,190,null,20,null,"Хабибуллина Ильсеяр Ильдусовна","МАОУ \"Лицей №121 имени Героя Советского Союза С.А.Ахтямова\" Советского района г.Казани"]
[61,"Приволжский район","ОШИ «IT-лицей ФГАОУ ВО «К(П)ФУ»","Сысоев","Н.","Д.",10,10,19,190,null,19,null,"Белякова Ксения Валерьевна","ОШИ IТ-лицей ФГАОУ ВО К(П)ФУ"]
[62,"Вахитовский район","Общеобразовательная школа-интернат «Лицей имени Н.И. Лобачевского» федерального государственного автономного образовательного учреждения высшего образования \"Казанский (Приволжский) федеральный университет\"","Кутьин","И.","А.",10,10,18,190,null,18,null,"Егорова Алевтина Николаевна","ОШИ \"Лицей имени Н.И.Лобачевского\" КФУ"]
[63,"Авиастроительный район","МБОУ «Средняя общеобразовательная школа №33 с углубленным изучением отдельных предметов»","Егоров","Б.","О.",10,10,17,190,null,17,null,"Нуруллина Эльмира Рафиковна","МБОУ «Средняя общеобразовательная школа №33 с углубленным изучением отдельных предметов» "]
[64,"Московский район","Муниципальное бюджетное общеобразовательное учреждение «Средняя общеобразовательная школа №20» Московского района г. Казани","Фаизова","А.","И.",10,10,17,190,null,17,null,"Салимова Зайтуна Муфараковна","МБОУ СОШ 20"]
[65,"Советский район","МБОУ \"Гимназия №90\" Советского района ","Шулятьев","В.","Д.",10,10,17,190,null,{"$f":"I67+K67","v":17},null,"Обухова Татьяна Алексеевна","МБОУ \"Гимназия№ 90\""]
[66,"Приволжский район","ОШИ «IT-лицей ФГАОУ ВО «К(П)ФУ»","Андреева","А.","Ю.",10,10,15,190,null,15,null,"Шамсутдинов Динар Загитович","ОШИ IТ-лицей ФГАОУ ВО К(П)ФУ"]
[67,"Кировский район","МБОУ \"Средняя русско-татарская общеобразовательная школа №57\" Кировского района г.Казани","Галиуллин","Б.","Н.",10,10,14,190,null,14,null,"Варфоломеева Зоя Владимировна","МБОУ \"Школа № 57\""]
[68,"Московский район","Муниципальное бюджетное общеобразовательное учреждение «Средняя общеобразовательная школа №55 с углубленным изучением отдельных предметов» Московского района г.Казани","Янышева","М.","А.",10,10,14,190,null,14,null,"Фатхеева Алена Валерьевна","МБОУ \"Школа №55"]
[69,"Приволжский район","МБОУ «Гимназия №18» Приволжского района ","Яруллина","Г.","И.",10,10,13,190,null,13,null,"Валеева Наиля Зиннуровна","МБОУ \"Гимназия №18\""]
[70,"Приволжский район","МБОУ «Гимназия №6» Приволжского района ","Сорокина","Е.","С.",10,10,13,190,null,13,null,"Зелепукина Людмила Георгиевна","МБОУ \"Гимназия №6\""]
[71,"Авиастроительный район","МБОУ «Средняя общеобразовательная школа №62 с углубленным изучением отдельных предметов» Авиастроительного района","Случаев","К.","К.",10,10,12,190,null,12,null,"Иванкова Ольга Алексеевна","МБОУ \"Школа № 62\" Авиастроительного района г. Казани"]
[72,"Приволжский район","ОШИ «IT-лицей ФГАОУ ВО «К(П)ФУ»","Синицын","Д.","К.",10,10,12,190,null,12,null,"Шамсутдинов Динар Загитович","ОШИ IТ-лицей ФГАОУ ВО К(П)ФУ"]
[73,"Вахитовский район","МБОУ «Гимназия №27 с татарским языком обучения» Вахитовского района","Гасанов ","Э. ","К. о.",10,10,12,190,null,12,null,"Надиманова Зульфия Мансуровна","Гимназия №27"]
[74,"Кировский район","Муниципальное бюджетное общеобразовательное учреждение \"Татарская гимназия №15\" Кировского района г.Казани","Самойлов","А.","В.",10,10,11,190,null,11,null,"Хайруллина Зайтуна Зуфаровна","Гимназия №15"]
[75,"Ново-Савиновский район","МБОУ «Средняя общеобразовательная школа №170 с углублённым изучением отдельных предметов» Ново-Савиновского района г. Казани","Карасева ","А. ","А.",10,10,11,190,null,11,null,"Аглямова Алиса Габдрашитовна","МБОУ \"СОШ №170 с УИОП\" Ново-Савиновского района г.Казани"]
[76,"Авиастроительный район","МБОУ «Средняя общеобразовательная школа №62 с углубленным изучением отдельных предметов» Авиастроительного района","Гребнева","Е.","А.",10,10,11,190,null,11,null,"Иванкова Ольга Алексеевна","МБОУ \"Школа № 62\" Авиастроительного района г. Казани"]
[77,"Авиастроительный район","Муниципальное бюджетное общеобразовательное учреждение \"Лицей №145\" Авиастроительного района г. Казани","Махмутов ","Р.","И.",10,10,11,190,null,11,null,"Садиков Ирек Ильдарович","МБОУ №Лицей №145\""]
[78,"Приволжский район","МБОУ «Гимназия №6» Приволжского района ","Сибиев","А.","Р.",10,10,11,190,null,11,null,"Зелепукина Людмила Георгиевна","МБОУ \"Гимназия №6\""]
[79,"Вахитовский район","Муниципальное автономное общеобразовательное учреждение для детей, проявивших выдающиеся способности «Средняя общеобразовательная школа-интернат «Специализированный олимпиадно-научный центр «СОлНЦе» Вахитовского района г. Казани Вахитовского района г. Казани","Хафизов","А.","Д.",10,10,11,190,null,11,null,"Гиниятуллин Рамиль Мавлютович","МАОУ СОШИ \"СОлНЦе\""]
[80,"Авиастроительный район","МБОУ \"Гимназия №33\" Авиастроительного района","Бердниова","К.","В.",10,10,10,190,null,10,null,"Нуруллина Э. Р.","МБОУ Гимназия №33"]
[81,"Приволжский район","МАОУ «Гимназия №139-Центр образования» Приволжского района ","Саитбеков","А.","В.",10,10,10,190,null,10,null,"Фазылзянова Ильмира Ильдусовна","МАОУ \"Гимназия №139-Центр образования\" Приволжского района"]
[82,"Вахитовский район","Муниципальное автономное общеобразовательное учреждение \"Лицей №131\" Вахитовского района г. Казани","Казакова","С.","О.",10,10,10,190,null,10,null,"Чешуина Марина Сергеевна","МАОУ \"Лицей № 131\" Вахитовского района г. Казани"]
[83,"Московский район","Муниципальное бюджетное образовательное учреждение \"Гимназия №9\" Московского района г.Казани","Леона","Е.","С.",10,10,9,190,null,9,null,"Мюллер Георгий Александрович","МБОУ \"Гимназия №9\""]
[84,"Приволжский район","МАОУ «Гимназия №139-Центр образования» Приволжского района ","Хафизов","А.","А.",10,10,7,190,null,7,null,"Фазылзянова Ильмира Ильдусовна","МАОУ \"Гимназия №139-Центр образования\" Приволжского района"]
[85,"Московский район","Муниципальное бюджетное образовательное учреждение \"Гимназия №9\" Московского района г.Казани","Дубровская ","М.","О.",10,10,6,190,null,6,null,"Мюллер Георгий Александрович","МБОУ \"Гимназия №9\""]
[86,"Московский район","Муниципальное бюджетное общеобразовательное учреждение «Средняя общеобразовательная школа №20» Московского района г. Казани","Нугманова ","А.","Р.",10,10,6,190,null,6,null,"Салимова Зайтуна Муфараковна","МБОУ СОШ 20"]
[87,"Приволжский район","МБОУ «СОШ №114» Приволжского района ","Замилов","М.","И.",10,10,5,190,null,5,null,"Нигматуллина К.И.","Школа №114"]
[88,"Приволжский район","МАОУ «Гимназия №139-Центр образования» Приволжского района ","Захаров","Д.","В.",10,10,5,190,null,5,null,"Фазылзянова Ильмира Ильдусовна","МАОУ \"Гимназия №139-Центр образования\" Приволжского района"]
[89,"Советский район","МБОУ \"Гимназия №90\" Советского района ","Карабаев","А.","И.",10,10,3,190,null,3,null,"Обухова Татьяна Алексеевна","МБОУ \"Гимназия№ 90\""]
[90,"Вахитовский район","Муниципальное автономное общеобразовательное учреждение \"Лицей №131\" Вахитовского района г. Казани","Рябых","А.","Р.",11,11,163,190,null,163,"Победитель","Коган Дина Ильдусовна","МАОУ \"Лицей № 131\" Вахитовского района г. Казани"]
[91,"Вахитовский район","Общеобразовательная школа-интернат «Лицей имени Н.И. Лобачевского» федерального государственного автономного образовательного учреждения высшего образования \"Казанский (Приволжский) федеральный университет\"","Хайрисламов","Т.","А.",11,11,36,190,114,150,"Призер","Билалова Дина Султановна","ОШИ \"Лицей имени Н.И.Лобачевского\" КФУ"]
[92,"Вахитовский район","Муниципальное автономное общеобразовательное учреждение \"Лицей №131\" Вахитовского района г. Казани","Зарипова","А.","Г.",11,11,110,190,37,147,"Призер","Коган Дина Ильдусовна","МАОУ \"Лицей № 131\" Вахитовского района г. Казани"]
[93,"Вахитовский район","Общеобразовательная школа-интернат «Лицей имени Н.И. Лобачевского» федерального государственного автономного образовательного учреждения высшего образования \"Казанский (Приволжский) федеральный университет\"","Кузнецов","Д.","В.",11,11,115,190,null,115,"Призер","Билалова Дина Султановна","ОШИ \"Лицей имени Н.И.Лобачевского\" КФУ"]
[94,"Вахитовский район","Муниципальное автономное общеобразовательное учреждение \"Лицей №131\" Вахитовского района г. Казани","Ихсанова","С.","Н.",11,11,114,190,null,114,"Призер","Коган Дина Ильдусовна","МАОУ \"Лицей № 131\" Вахитовского района г. Казани"]
[95,"Вахитовский район","Общеобразовательная школа-интернат «Лицей имени Н.И. Лобачевского» федерального государственного автономного образовательного учреждения высшего образования \"Казанский (Приволжский) федеральный университет\"","Залилова","Д.","И.",11,11,114,190,null,114,"Призер","Билалова Дина Султановна","ОШИ \"Лицей имени Н.И.Лобачевского\" КФУ"]
[96,"Ново-Савиновский район","МБОУ \"Лицей №177\" Ново-Савиновского района","Шамсутдинов","А.","А.",11,11,97,190,null,97,"Призер","Хамиев Шагид Ильсурович","МБОУ \"Лицей №177\""]
[97,"Вахитовский район","Общеобразовательная школа-интернат «Лицей имени Н.И. Лобачевского» федерального государственного автономного образовательного учреждения высшего образования \"Казанский (Приволжский) федеральный университет\"","Курочкин ","Д.","В.",11,11,74,190,null,{"$f":"I99+K99","v":74},null,"Билалова Дина Султановна","ОШИ \"Лицей имени Н.И.Лобачевского\" КФУ"]
[98,"Советский район","МБОУ «Средняя общеобразовательная школа №101 имени П.А.Полушкина» Советского района ","Сираев","Б.","А.",11,11,25,190,null,25,null,"Апакова Алсу Насыбулловна","МБОУ«Средняя общеобразовательная школа №101 имени П.А. Полушкина - Центр образования »"]
[99,"Советский район","МБОУ \"Гимназия №90\" Советского района ","Захарова","К.","С.",11,11,23,190,null,23,null,"Миронская Лариса Геннадьевна","МБОУ \"Гимназия№ 90\""]
[100,"Ново-Савиновский район","МБОУ \"Гимназия №13\" Ново-Савиновского района","Казымов","О.","А. о.",11,11,22,190,null,22,null,null,"МБОУ \" Гимназия № 13 с татарским языком обучения\" Ново-Савиновского района г. Казани"]
[101,"Приволжский район","МБОУ «Гимназия №6» Приволжского района ","Белова","Д.","А.",11,11,21,190,null,21,null,"Зелепукина Людмила Георгиевна","МБОУ \"Гимназия №6\""]
[102,"Кировский район","Муниципальное бюджетное общеобразовательное учреждение \"Татарская гимназия №15\" Кировского района г.Казани","Мухамадиева ","Д.","Ш.",11,11,19,190,null,19,null,"Сагдиева Фируза Идрисовна","Гимназия №15"]
[103,"Приволжский район","МБОУ «Гимназия №18» Приволжского района ","Гизатуллина","Д.","И.",11,11,19,190,null,19,null,"Усманова Эльмира Расыховна","МБОУ \"Гимназия №18\""]
[104,"Приволжский район","МАОУ «Гимназия №139-Центр образования» Приволжского района ","Шайдуллина","А.","Н.",11,11,19,190,null,19,null,"Блохина Лилия Надировна","МАОУ \"Гимназия №139-Центр образования\" Приволжского района"]
[105,"Ново-Савиновский район","МБОУ \"Лицей №23\" Ново-Савиновского района","Выборнов","Д.","Р.",11,11,18,190,null,18,null,"Мустафина А.Ф. ","МБОУ \"Лицей №23\" Казани"]
[106,"Московский район","Муниципальное бюджетное общеобразовательное учреждение «Средняя общеобразовательная школа №20» Московского района г. Казани","Садовничая","А.","С.",11,11,18,190,null,18,null,"Салимова Зайтуна Муфараковна","МБОУ СОШ 20"]
[107,"Приволжский район","МАОУ «Гимназия №139-Центр образования» Приволжского района ","Козлова","К.","Д.",11,11,18,190,null,18,null,"Фазылзянова Ильмира Ильдусовна","МАОУ \"Гимназия №139-Центр образования\" Приволжского района"]
[108,"Советский район","МБОУ «Средняя общеобразовательная школа №101 имени П.А.Полушкина» Советского района ","Евлампиев","Н.","Ю.",11,11,18,190,null,18,null,"Апакова Алсу Насыбулловна","МБОУ«Средняя общеобразовательная школа №101 имени П.А. Полушкина - Центр образования »"]
[109,"Приволжский район","ОШИ «IT-лицей ФГАОУ ВО «К(П)ФУ»","Сайфуллин","Д.","И.",11,11,17,190,null,17,null,"Шамсутдинов Динар Загитович","ОШИ IТ-лицей ФГАОУ ВО К(П)ФУ"]
[110,"Советский район","МБОУ «Средняя общеобразовательная школа №175» Советского района ","Валеева","К.","Р.",11,11,17,190,null,17,null,"Якупова Гюзель Альбертовна","МБОУ \"Школа 175\""]
[111,"Московский район","Муниципальное бюджетное общеобразовательное учреждение «Гимназия №75» Московского района г.Казани","Шайдуллина ","Э."," Р.",11,11,16,190,null,16,null,"Симонов Юрий Федорович","Гимназия № 75"]
[112,"Приволжский район","МБОУ «Гимназия №6» Приволжского района ","Белова","А.","А.",11,11,16,190,null,16,null,"Зелепукина Людмила Георгиевна","МБОУ \"Гимназия №6\""]
[113,"Советский район","МБОУ «Средняя общеобразовательная школа №171 с углубленным изучением отдельных предметов» Советского района","Мухаметшина ","Р. ","М.",11,11,16,190,null,16,null,"Владимирова Ильсияр Аглямовна","МБОУ СОШ 171"]
[114,"Приволжский район","МАОУ «Гимназия №139-Центр образования» Приволжского района ","Багаутдинова","А.","И.",11,11,15,190,null,15,null,"Фазылзянова Ильмира Ильдусовна","МАОУ \"Гимназия №139-Центр образования\" Приволжского района"]
[115,"Советский район","МБОУ «Средняя общеобразовательная школа №171 с углубленным изучением отдельных предметов» Советского района","Закирова","А.","Н.",11,11,15,190,null,15,null,"Владимирова Ильстяр Аглямовна","МБОУ СОШ 171"]
[116,"Советский район","МБОУ «Средняя общеобразовательная школа №144 с углубленным изучением отдельных предметов»","Филатова","П.","Д.",11,11,15,190,null,15,null,"Гришина Эльвира Сулеймановна","МБОУ \"Школа 144\""]
[117,"Московский район","Муниципальное бюджетное образовательное учреждение \"Гимназия №9\" Московского района г.Казани","Филатов","В.","В.",11,11,14,190,null,14,null,"Мюллер Георгий Александрович","МБОУ \"Гимназия №9\""]
[118,"Приволжский район","ОШИ «IT-лицей ФГАОУ ВО «К(П)ФУ»","Платонов","Н.","Д.",11,11,14,190,null,14,null,"Шамсутдинов Динар Загитович","ОШИ IТ-лицей ФГАОУ ВО К(П)ФУ"]
[119,"Приволжский район","ОШИ «IT-лицей ФГАОУ ВО «К(П)ФУ»","Евдокимов","А.","А.",11,11,14,190,null,14,null,"Шамсутдинов Динар Загитович","ОШИ IТ-лицей ФГАОУ ВО К(П)ФУ"]
[120,"Приволжский район","МБОУ «Гимназия №16» Приволжского района ","Ларина","А.","С.",11,11,14,190,null,14,null,"Рахметуллин Токтар Максутович","МБОУ \"Татаро-английская гимназия №16\""]
[121,"Кировский район","Муниципальное бюджетное общеобразовательное учреждение «Гимназия №50» Кировского района г. Казани","Валиуллина","Э.","В.",11,11,13,190,null,13,null,"Фазлиахметов Д.Ф.","Гимназия №50"]
[122,"Вахитовский район","ГБОУ «ККШИ им .Героя Советского Союза Б.К. Кузнецова» Вахитовского района","Слюсаренко","К. ","М.",11,11,13,190,null,13,null,"Хазбиева Лилия Ильгизовна ","ГБОУ «Казанская кадетская школа-интернат имени Героя Советского Союза Б.К.Кузнецова»"]
[123,"Ново-Савиновский район","МАОУ \"Лицей-интернат №7\" Ново-Савиновского района","Якупов","К.","Л.",11,11,12,190,null,12,null,"Салахутдинов Нияз Наилевич","МАОУ \"Лицей-интернат 7\""]
[124,"Ново-Савиновский район","МБОУ \"Школа №49\" Ново-Савиновского района","Магсумова","К.","А.",11,11,12,190,null,12,null,"Закамская Н.В.","МБОУ СОШ №49"]
[125,"Вахитовский район","ФГКОУ «Казанское суворовское военное училище МО РФ»","Ляшенко ","М."," М.",11,11,12,190,null,12,null,"Задорин Александр Викторович","ФГКОУ \"Казанское суворовское военное училище МО РФ\" "]
[126,"Советский район","МБОУ \"Гимназия №125\" Советского района ","Чернявский","Я.","С.",11,11,12,190,null,12,null,"Карпова Александра Олеговна","МБОУ \"Гимназия№125\""]
[127,"Приволжский район","МАОУ «Гимназия №139-Центр образования» Приволжского района ","Хусаинов","Р.","А.",11,11,11,190,null,11,null,"Фазылзянова Ильмира Ильдусовна","МАОУ \"Гимназия №139-Центр образования\" Приволжского района"]
[128,"Вахитовский район","ФГКОУ «Казанское суворовское военное училище МО РФ»","Бочко ","В. ","В.",11,11,11,190,null,11,null,"Задорин Александр Викторович","ФГКОУ \"Казанское суворовское военное училище МО РФ\" "]
[129,"Ново-Савиновский район","МАОУ \"Лицей-интернат №7\" Ново-Савиновского района","Гафиатуллин","Р.","Э.",11,11,10,190,null,{"$f":"I131+K131","v":10},null,"Салахутдинов Нияз Наилевич","МАОУ \"Лицей-интернат 7\""]
[130,"Ново-Савиновский район","МБОУ «Средняя общеобразовательная школа №170 с углублённым изучением отдельных предметов» Ново-Савиновского района г. Казани","Баширова ","А. ","Р.",11,11,10,190,null,10,null,"Аглямова Алиса Габдрашитовна","МБОУ \"СОШ №170 с УИОП\" Ново-Савиновского района г.Казани"]
[131,"Московский район","Муниципальное бюджетное общеобразовательное учреждение «Гимназия №75» Московского района г.Казани","Гарина","Д.","Е.",11,11,10,190,null,10,null,"Симонов Юрий Федорович","Гимназия № 75"]
[132,"Московский район","Муниципальное бюджетное образовательное учреждение \"Гимназия №9\" Московского района г.Казани","Валеева","Р.","И.",11,11,10,190,null,10,null,"Мюллер Георгий Александрович","МБОУ \"Гимназия №9\""]
[133,"Советский район","МБОУ «Средняя общеобразовательная школа №72 с углубленным изучением немецкого языка» Советского района","Каримов","А.","Р.",11,11,10,190,null,10,null,"Кузьмина Татьяна Александровна","школа 72"]
[134,"Приволжский район","МАОУ «Гимназия №139-Центр образования» Приволжского района ","Махнин","А.","Л.",11,11,8,190,null,8,null,"Блохина Лилия Надировна","МАОУ \"Гимназия №139-Центр образования\" Приволжского района"]
[135,"Приволжский район","МАОУ «Гимназия №139-Центр образования» Приволжского района ","Мамяшев","А.","А.",11,11,6,190,null,6,null,"Фазылзянова Ильмира Ильдусовна","МАОУ \"Гимназия №139-Центр образования\" Приволжского района"]
[136,"Советский район","МБОУ «Средняя общеобразовательная школа №101 имени П.А.Полушкина» Советского района ","Савин","В.","Е.",11,11,6,190,null,6,null,"Апакова Алсу Насыбулловна","МБОУ«Средняя общеобразовательная школа №101 имени П.А. Полушкина - Центр образования »"]
[137,"Авиастроительный район","МБОУ «Средняя общеобразовательная школа №62 с углубленным изучением отдельных предметов» Авиастроительного района"," ","П.","А.",11,11,4,190,null,4,null,"Шагеева Резида Фахрлисламовна","МБОУ \"Школа № 62\" Авиастроительного района г. Казани"]